Cogmind - Beta 15 *** ADVENTURER MODE // 2025.05.09 @ 11:45:34 Player: Jack Result: Destroyed by 3Q-0A1(R) with Subdweller Shrapnel Launcher Performance ------------- Evolutions (0) 0 Regions Visited (2) 400 Robots Destroyed (17) 85 Value Destroyed (483) 483 Prototype IDs (0) 0 Alien Tech Used (0) 0 Bonus (0) 0 TOTAL SCORE: 968 Bonus ------- None Cogmind --------- Core Integrity 0/250 Matter 300/300 Energy 97/100 System Corruption 0% Temperature Cool (0) Movement Core (50) Location -10/Subcaves Parts ------- > --- POWER (1) -------- (None) > --- PROPULSION (2) --- (None) > --- UTILITY (2) ------ (None) > --- WEAPON (2) ------- Small Laser > --- INVENTORY (5) ---- Light Ion Engine Improved Terrain Scanner Seismic Detector Small Laser Assault Rifle Peak State ------------ > --- POWER ------------ (None) > --- PROPULSION ------- (None) > --- UTILITY ---------- (None) > --- WEAPON ----------- Particle Gun Assault Rifle > --- INVENTORY -------- Light Ion Engine Improved Terrain Scanner Seismic Detector Small Laser Assault Rifle [Rating: 3] Favorites ----------- Power None Propulsion None Utility None Weapon Small Laser Energy Gun Small Laser Ballistic Gun Assault Rifle Build | -11 -10 -10 ------- Run | Yrd Mat Sub Slots Evolved . | . . . Power . | . . . Propulsion . | . . . Utility . | . . . Weapon . | . . . Parts Attached 5 | 2 3 . Power . | . . . Engine . | . . . Core . | . . . Reactor . | . . . Propulsion . | . . . Treads . | . . . Leg . | . . . Wheel . | . . . Hover . | . . . Flight . | . . . Utility . | . . . Device . | . . . Storage . | . . . Processor . | . . . Hackware . | . . . Protection . | . . . Artifact . | . . . Weapon 5 | 2 3 . Energy Gun 4 | 1 3 . Energy Cannon . | . . . Ballistic Gun 1 | 1 . . Ballistic Cannon . | . . . Launcher . | . . . Special Weapon . | . . . Impact Weapon . | . . . Slashing Weapon . | . . . Piercing Weapon . | . . . Special Melee Weapon . | . . . Unidentified Prototypes . | . . . Parts Lost 2 | . 1 1 Power . | . . . Propulsion . | . . . Utility . | . . . Weapon 2 | . 1 1 Highest Loss Streak 1 | . 1 1 To Critical Strikes . | . . . Average Backups 1 | . 4 5 Power . | . 1 1 Propulsion . | . . . Utility . | . 2 2 Weapon . | . 1 2 Tool/Special . | . . . Unused Backups 2 | . . 2 Power . | . . . Propulsion . | . . . Utility 2 | . . 2 Weapon . | . . . Tool/Special . | . . . Average Slot Usage (%) 27 | . 28 27 Energy Gun 22 | . 18 27 Ballistic Gun 5 | . 9 . Peak Build Rating 3 | 2 3 3 Average Rating . | . 2 2 On Entrance 1 | . 2 3 Naked Turns . | . . . Heaviest Build 5 | 4 5 4 Greatest Support 3 | 3 3 3 Greatest Overweight (x) 1 | 1 1 1 Average Overweight (x) . | . . . Largest Inventory Capacity 5 | 5 5 5 Average Capacity 5 | 5 5 5 Most Carried 5 | 4 5 5 Average Carried 1 | . 4 5 Final Capacity 5 | 5 5 5 Final Carried 5 | 4 5 5 Class Distribution -------------------- 100% | Mutant Dominant Class ---------------- Mutant | -10/Materials Mutant | -10/Subcaves Resources | -11 -10 -10 ----------- Run | Yrd Mat Sub Matter Collected 302 | 222 80 . Remotely . | . . . Salvage Created 686 | 128 476 82 Parts 38 | 6 27 5 Haulers Intercepted 1 | . 1 . Recyclers Shooed . | . . . Parts Field Recycled . | . . . Retrieved Matter . | . . . Parts Self-Destructed . | . . . Prevented . | . . . Kills | -11 -10 -10 ------- Run | Yrd Mat Sub Combat Hostiles Destroyed 12 | . 10 2 Guns 12 | . 10 2 Classes Destroyed 6 | 2 3 1 Builder 1 | . 1 . Tunneler 2 | 2 . . Hauler 1 | . 1 . Recycler 1 | 1 . . Grunt 10 | . 10 . Subdweller 2 | . . 2 Best Kill Streak 5 | 3 5 2 Combat Bots Only 5 | . 5 2 Max Kills in Single Turn 1 | 1 1 1 Gunslinging . | . . . Exploded . | . . . Melee . | . . . Uniques/NPCs Destroyed . | . . . Combat | -11 -10 -10 -------- Run | Yrd Mat Sub Hostile Shots Fired 43 | . 36 7 Missed 6 | . 4 2 Hits 37 | . 32 5 Projectile 37 | . 32 5 AOE 5 | . . 5 Damage Taken 537 | . 289 248 Core 266 | . 51 215 Absorbed by Shields . | . . . Ignored by Resistances 155 | . 89 66 Core Remaining (%) 100 | 100 . . Volleys Fired 41 | 5 29 7 Largest 2 | 2 2 2 Hottest 105 | 70 105 105 Shots Fired 76 | 10 57 9 Gun 76 | 10 57 9 Cannon . | . . . Launcher . | . . . Special . | . . . Kinetic 19 | 5 14 . Thermal 57 | 5 43 9 Explosive . | . . . Electromagnetic . | . . . Robot Hit Streak 29 | 4 29 6 Robot Miss Streak 2 | 1 2 2 Penetration Max . | . . . Secondary Targets . | . . . Shots Hit Robots 65 | 7 51 7 Core Hits 31 | 4 23 4 Critical Kills . | . . . Critical Parts Destroyed . | . . . Critical Strikes 3 | . 3 . Burn 3 | . 3 . Melee Attacks . | . . . Impact . | . . . Slashing . | . . . Piercing . | . . . Sneak Attacks . | . . . Combat Hostiles . | . . . Follow-up Attacks . | . . . Damage Inflicted 837 | 91 657 89 Guns 837 | 91 657 89 Cannons . | . . . Explosions . | . . . Melee . | . . . Ramming . | . . . Kinetic 195 | 39 156 . Thermal 642 | 52 501 89 Explosive . | . . . Electromagnetic . | . . . Impact . | . . . Slashing . | . . . Piercing . | . . . Highest Corruption . | . . . Average Corruption . | . . . Corruption Purged . | . . . Corruption Blocked . | . . . Overload Shots . | . . . Overflow Damage . | . . . Projectiles . | . . . Explosions . | . . . Melee . | . . . Knockbacks . | . . . Impact . | . . . Kinetic . | . . . Secondary . | . . . Self-Inflicted Damage . | . . . Shots . | . . . Rammed . | . . . Targets Rammed . | . . . Kicked . | . . . Crushed . | . . . Highest Temperature 360 | . 360 . Average Temperature 98 | . 98 . Received Heat Transfer 225 | . 216 9 Effects 2 | . 2 . Energy Bleed 2 | . 2 . Siege Activations . | . . . Martial Activations . | . . . Shielding Activations . | . . . Robots Disrupted . | . . . Combat Hostiles . | . . . Robots Corrupted . | . . . Combat Hostiles . | . . . Parts Fried . | . . . Impact Corruptions . | . . . Robots Melted . | . . . Combat Hostiles . | . . . Parts Melted 3 | . 3 . Heat Transferred 1808 | 148 1461 199 Parts Sabotaged . | . . . Parts Stolen . | . . . Parts Stripped . | . . . Power Chain Reactions . | . . . Alert | -11 -10 -10 ------- Run | Yrd Mat Sub Maximum Alert Level . | . . . Low Security (%) 100 | 100 100 . Level 1 . | . . . Level 2 . | . . . Level 3 . | . . . Level 4 . | . . . Level 5 . | . . . High Security . | . . . Max Security . | . . . Peak Influence 176 | 5 176 . Initial . | . . . Average 15 | . 68 . Influence Increases 276 | 15 261 . Destroy 0b10 Robot/C 200 | . 200 . Destroy 0b10 Robot/NC 25 | 15 10 . Destroy Leader 42 | . 42 . Disable Machine 9 | . 9 . Influence Decreases 276 | 15 90 171 Entered New Map 95 | . . 95 Time Decay 171 | 15 80 76 Lost Part 10 | . 10 . Squads Dispatched 2 | . 2 . Investigation 2 | . 2 . Extermination . | . . . Reinforcement . | . . . Assault . | . . . Garrison . | . . . Intercept . | . . . Searches Triggered . | . . . Construction Impeded . | . . . Haulers Reinforced . | . . . Active Scanning Responses . | . . . Cargo Convoy Interrupts . | . . . Stealth | -11 -10 -10 --------- Run | Yrd Mat Sub Distress Signals 1 | . 1 . Communications Jammed . | . . . Distress Signals . | . . . Times Spotted 17 | . 14 3 Peak Tracking Total 5 | . 5 2 Tactical Retreats . | . . . Traps | -11 -10 -10 ------- Run | Yrd Mat Sub Traps Triggered 2 | . 2 . Indirectly . | . . . Trap Hack Attempts . | . . . Triggered . | . . . Disarmed . | . . . Reprogrammed . | . . . Reused . | . . . Traps Extracted . | . . . Installed . | . . . Triggered . | . . . Machines | -11 -10 -10 ---------- Run | Yrd Mat Sub Machines Disabled 1 | . 1 . Max in Single Turn 1 | . 1 . Machines Repaired . | . . . Machines Dismantled . | . . . Machines Sabotaged . | . . . Overloaded Fab Kills . | . . . Hacking | -11 -10 -10 --------- Run | Yrd Mat Sub Machines Accessed . | . . . Terminals . | . . . Fabricators . | . . . Repair Stations . | . . . Recycling Units . | . . . Scanalyzers . | . . . Garrison Access . | . . . Total Hacks . | . . . Successful . | . . . Failed . | . . . Catastrophic . | . . . Database Lockouts . | . . . Manual . | . . . Terminals . | . . . Fabricators . | . . . Repair Stations . | . . . Recycling Units . | . . . Scanalyzers . | . . . Garrison Access . | . . . Terminal Hacks . | . . . Fabricator Hacks . | . . . Repair Station Hacks . | . . . Recycling Unit Hacks . | . . . Scanalyzer . | . . . Garrison Access Hacks . | . . . Unauthorized Hacks . | . . . Terminals . | . . . Fabricators . | . . . Repair Stations . | . . . Recycling Units . | . . . Scanalyzers . | . . . Garrison Access . | . . . Data Cores Recovered . | . . . Used . | . . . Hacking Detections . | . . . Full Trace Events . | . . . Feedback Events . | . . . Feedback Blocked . | . . . Robot Schematics Acquired . | . . . Robots Built . | . . . Authchips . | . . . Time . | . . . Total Robot Build Rating . | . . . Part Schematics Acquired . | . . . Parts Built . | . . . Authchips . | . . . Time . | . . . Total Part Build Rating . | . . . Parts Repaired . | . . . Time . | . . . Parts Recycled . | . . . Recycled Matter . | . . . Retrieved Matter . | . . . Retrieved Components . | . . . Parts Scanalyzed . | . . . Part Schematics Acquired . | . . . Parts Damaged . | . . . Bothacking | -11 -10 -10 ------------ Run | Yrd Mat Sub Used RIF Installer . | . . . Robots Hacked . | . . . Non-combat . | . . . Combat . | . . . Robot Hacks Applied . | . . . Relay Couplers Released . | . . . Fabnet Peak Effective % . | . . . Robots Rewired . | . . . Allies Hacked . | . . . Hacks Repelled . | . . . Allies | -11 -10 -10 -------- Run | Yrd Mat Sub Total Allies . | . . . Largest Group . | . . . Highest-Rated Group . | . . . Highest-Rated Ally . | . . . Total Orders . | . . . Ally Attacks . | . . . Total Damage . | . . . Kills . | . . . Allies Corrupted . | . . . Allies Melted . | . . . Intel | -11 -10 -10 ------- Run | Yrd Mat Sub Active Infowar (turns) . | . . . Robot Analysis Total . | . . . Derelict Logs Recovered 1 | . . 1 Drone Launches . | . . . Drone Recoveries . | . . . Exploration | -11 -10 -10 ------------- Run | Yrd Mat Sub Turns Passed 1603 | 1049 297 257 Spaces Moved 802 | 366 205 231 Core 802 | 366 205 231 Treads . | . . . Legs . | . . . Wheels . | . . . Hover . | . . . Flight . | . . . Fastest Speed 50 | 50 50 50 Average Speed 78 | 58 91 98 Slowest Speed 100 | 100 100 100 Overloaded Moves . | . . . Propulsion Burnouts . | . . . Robots Hopped . | . . . Potential Cave-ins . | . . . Cave-ins Triggered . | . . . Exploration Rate (%) 31 | 33 52 8 Regions Visited 2 Branch Regions 1 Pre-discovered Areas . | . . . Known Exits Taken . | . . . Unknown Exits Taken 2 | 1 1 . Scrap Searched . | . . . Spaces Dug . | . . . Terrain Destroyed . | . . . Melee . | . . . Projectile . | . . . AOE . | . . . Terrain Rammed . | . . . Walls Destroyed . | . . . Machines Disabled . | . . . Actions | -11 -10 -10 --------- Run | Yrd Mat Sub Total 1700 | 1191 257 252 Wait 849 | 815 20 14 Move 800 | 365 204 231 Hop . | . . . Pick Up 4 | 4 . . Fast Attach 3 | 2 1 . Attach . | . . . Detach . | . . . Swap 2 | . 2 . Drop 1 | . 1 . Fire 41 | 5 29 7 Melee . | . . . Ram . | . . . Kick . | . . . Crush . | . . . Escape Stasis . | . . . Rewire . | . . . Trap . | . . . Miscellaneous . | . . . Route ------- -11/Scrapyard -10/Materials (discovered 2 exits: [*Mat] / [*Sub]) -10/Subcaves History --------- Turn | Location | Event 3 | -11/Scrapyard | Discovered new exit (range 15) 1050 | -11/Scrapyard | Entered Materials 1051 | -10/Materials | Build established: Mutant 1278 | -10/Materials | Discovered new exit (range 16) 1336 | -10/Materials | Discovered new exit (range 9) 1347 | -10/Materials | Entered Subcaves 1348 | -10/Subcaves | Approached by a straggling Scientist 1355 | -10/Subcaves | Learned 4 Materials zone layouts 1591 | -10/Subcaves | Core integrity fell below 50% 1598 | -10/Subcaves | Core integrity fell below 20% 1604 | -10/Subcaves | Destroyed by 3Q-0A1(R) with Subdweller Shrapnel Launcher Last Messages --------------- U-05 Engineer destroyed. T-07 Excavator is excavating. LOCATION=UNKNOWN AMBIENT_HEAT=-10 GOAL=ESCAPE 2E-UQ8(c): "Thank the algorithms! I was beginning to lose hope I'd never make it past all the Subs lurking out here." 2E-UQ8(c): "Hey, let me tag along and I can get us both out of this nasty situation. At least I think I can... The group I got separated from was talking about a shortcut back to the UFD." Acquired derelict log, extracted data. Data stored: Materials zone layouts (x4). 2E-UQ8(c): "I think it's somewhere northwest of here" GN-E29(R) destroyed. Particle Gun destroyed. 3X-X3T(R) destroyed. Subatomizers dissect the Sub. Optics. 2E-UQ8(c): "I think it's somewhere northwest of here" Subatomizers dissect the Sub. Shrapnel Launcher. 3Q-0A1(R) affixes Scrap Shield Fragment to Scrap Shield. Map ----- +----------------------------------------------------+ | ??????????????????????????????????????????????? | | ??????????????????????????????????????????????? | | ######????????????????????????????????????????? | | # #????????????????????????????????????????? | | # ##???????????????????????????????????????? | | ##??????????????????????????????????????? | | ### #??????????????????????????????????????? | | ### #????????????????????#?????????????????? | | ## ##????????????????### ?????????????????? | | ################# #?????????????????? | | # # # ?????????????????? | | # ??????????????????? | | ## ## "# ??????????????????? | | ?## # ### # # ;;# ##?????????????????? | | ??## ###??##########; ; ; ###???????????????? | | ???###?????????##??#; #???????????????? | | ???????????????# #?#; ##??????????????? | | ??????????????## ##; #??????????????? | | ??????????????# "#; #??????????????? | | ??????????????# "" #???????????????? | | ??????????????# "" #???????????????? | | ??????????????# " #???????????????? | | ??????????????# ##"" #???????????????? | | ??????????????????#"" #???????????????? | | ??????????????????#""" c ;#???????????????? | | ??????????????????# ;;@ ;#????????????????? | | ??????????????????## ##; ;#???????????????? | | ???????????????????# ] ;##???????????????? | | ???????????????????# R%!;#????????????????? | | ???????????????????# # #????????????????? | | ???????????????????####### ##????????????????? | | ?????????????????????????? ?????????????????? | | ?????????????????????????? ###????????????????? | | ?????????????????????????? #??????????????????? | | ?????????????????????????? ??????????????????? | | ?????????????????????????? ??????????????????? | | ?????????????????????????? ??????????????????? | | ??????????????????????????? ??????????????????? | | ??????????????????????????? ??????????????????? | | ??????????????????????????? ??????????????????? | | ??????????????????????????? ??????????????????? | | ??????????????????????????????????????????????? | | ??????????????????????????????????????????????? | | ??????????????????????????????????????????????? | | ??????????????????????????????????????????????? | | ??????????????????????????????????????????????? | | ??????????????????????????????????????????????? | | ??????????????????????????????????????????????? | | ??????????????????????????????????????????????? | | ??????????????????????????????????????????????? | +----------------------------------------------------+ Best States ------------- Heat Dissipation 25 Energy Generation 5 Energy Capacity 100 Matter Stores 300 Matter Capacity 300 Sight Range 16 Terrain Scan Density 10 Resistance: KI 20 Resistance: TH 20 Resistance: EX 20 Resistance: EM 20 Resistance: I 20 Resistance: S 20 Resistance: P 20 Evasion (%) 50 Offensive Hacking 10 Item Schematics ----------------- None Robot Schematics ------------------ None Fabricated ------------ Nothing Repaired ---------- Nothing Alien Tech Used ----------------- None Achievements -------------- None Challenges ------------ None Game ------ Seed TeleporterFocalMatrix Manual? 0 Play Time 00:08:43 Cumulative 99.8 hours Start 2025.05.08 @ 23:25:26 End 2025.05.09 @ 11:45:34 Sessions 2 Manual Loads 0 Difficulty Adventurer Special Mode None Game No. 116 Rogue 18 Adventurer 91 Explorer 7 Win Type - Total 19 Types 4/0/8/0/2/0/4/1/0/0 Lore% 35 Gallery% 35 Achievement% 59 Wizard Run 0 Options --------- Layout 0 ASCII 0 Keyboard 0 Movement Numpad Keybinds 0 Fullscreen 2 Font 12/Smallcaps Map View 83x54 Zoom Use 0% Tactical HUD 0 Map Filters NONE Filters NONE Steam X RUN: 1a1bc0ec-ec41-47e0-9a1a-bc7e6b21b57e